Cogmind - Beta 12 *** ADVENTURER MODE // 2023.12.31 @ 21:13:15 Player: martinuzz Result: Destroyed by as-80822 with Assembled Blade Performance ------------- Evolutions (0) 0 Regions Visited (2) 400 Robots Destroyed (11) 55 Value Destroyed (261) 261 Prototype IDs (2) 40 Alien Tech Used (0) 0 Bonus (0) 0 TOTAL SCORE: 756 Bonus ------- None Cogmind --------- Core Integrity 0/250 Matter 266/300 Energy 70/100 System Corruption 8% Temperature Cool (65) Movement Core (1350) Ox26 Location -10/Mines Parts ------- > --- POWER (1) -------- (None) > --- PROPULSION (2) --- (None) > --- UTILITY (2) ------ Huge Storage Unit > --- WEAPON (2) ------- Welding Torch > --- INVENTORY (25) --- (None) Peak State ------------ > --- POWER ------------ Light Ion Engine > --- PROPULSION ------- Aluminum Leg Aluminum Leg > --- UTILITY ---------- Sensor Array Targeting Computer > --- WEAPON ----------- EM Pulse Gun Assault Rifle > --- INVENTORY -------- Huge Storage Unit Small Laser Small Laser [Rating: 7] Favorites ----------- Power Ion Engine Engine Ion Engine Propulsion Aluminum Leg Leg Aluminum Leg Utility Sensor Array Device Sensor Array Storage Huge Storage Unit Processor Targeting Computer Weapon Assault Rifle Energy Gun Small Laser Ballistic Gun Assault Rifle Special Weapon Welding Torch Build | -11 -10 -10 ------- Run | Jun Mat Min Slots Evolved . | . . . Power . | . . . Propulsion . | . . . Utility . | . . . Weapon . | . . . Parts Attached 20 | 5 11 4 Power 4 | 1 2 1 Engine 4 | 1 2 1 Core . | . . . Reactor . | . . . Propulsion 7 | 2 5 . Treads . | . . . Leg 7 | 2 5 . Wheel . | . . . Hover . | . . . Flight . | . . . Utility 3 | . 2 1 Device 1 | . 1 . Storage 1 | . . 1 Processor 1 | . 1 . Hackware . | . . . Protection . | . . . Artifact . | . . . Weapon 6 | 2 2 2 Energy Gun 3 | 1 2 . Energy Cannon . | . . . Ballistic Gun 2 | 1 . 1 Ballistic Cannon . | . . . Launcher . | . . . Special Weapon 1 | . . 1 Impact Weapon . | . . . Slashing Weapon . | . . . Piercing Weapon . | . . . Special Melee Weapon . | . . . Unidentified Prototypes . | . . . Parts Lost 11 | . 2 9 Power 3 | . 1 2 Propulsion 2 | . . 2 Utility 2 | . . 2 Weapon 4 | . 1 3 Highest Loss Streak 9 | . 2 9 To Critical Strikes . | . . . Average Slot Usage (%) 93 | . 93 90 Engine 12 | . 12 12 Leg 26 | . 26 23 Device 12 | . 12 12 Processor 12 | . 12 10 Energy Gun 13 | . 13 12 Ballistic Gun 13 | . 14 12 Naked Turns . | . . . Heaviest Build 9 | 7 9 9 Greatest Support 20 | 20 20 20 Greatest Overweight (x) 2 | . 2 . Average Overweight (x) . | . . . Largest Inventory Capacity 25 | 5 5 25 Average Capacity 5 | 5 5 8 Most Carried 5 | 3 5 4 Average Carried 3 | 1 4 3 Final Capacity 25 | 5 5 25 Final Carried 4 | 2 4 . Class Distribution -------------------- 100% | Mutant Dominant Class ---------------- Mutant | -10/Materials Mutant | -10/Mines Resources | -11 -10 -10 ----------- Run | Jun Mat Min Matter Collected 407 | 259 122 26 Remotely . | . . . Salvage Created 344 | 45 287 12 Parts 25 | 1 24 . Haulers Intercepted . | . . . Recyclers Shooed 4 | . 4 . Parts Field Recycled . | . . . Retrieved Matter . | . . . Parts Self-Destructed . | . . . Prevented . | . . . Kills | -11 -10 -10 ------- Run | Jun Mat Min Combat Hostiles Destroyed 9 | 1 7 1 Guns 9 | 1 7 1 Classes Destroyed 4 | 1 2 1 Watcher 3 | . 3 . Swarmer 3 | . 3 . Grunt 5 | 1 4 . Assembled 1 | . . 1 Best Kill Streak 6 | 1 6 1 Combat Bots Only 5 | 1 5 1 Max Kills in Single Turn 2 | 1 2 1 Gunslinging 1 | . 1 . Exploded . | . . . Melee . | . . . Uniques/NPCs Destroyed . | . . . Combat | -11 -10 -10 -------- Run | Jun Mat Min Damage Taken 980 | 26 321 633 Core 269 | . 44 225 Absorbed by Shields . | . . . Core Remaining (%) 100 | 100 . . Volleys Fired 42 | 3 30 9 Largest 2 | 2 2 2 Hottest 60 | 60 60 60 Shots Fired 80 | 6 60 14 Gun 79 | 6 60 13 Cannon . | . . . Launcher . | . . . Special 1 | . . 1 Kinetic 39 | 3 30 6 Thermal 27 | . 19 8 Explosive . | . . . Electromagnetic 14 | 3 11 . Robot Hit Streak 26 | 5 26 11 Robot Miss Streak 1 | . 1 1 Penetration Max . | . . . Secondary Targets 4 | . 3 1 Max Gunslinging Chain 1 | . 1 1 Shots Hit Robots 65 | 5 49 11 Core Hits 27 | 2 18 7 Critical Kills . | . . . Critical Parts Destroyed . | . . . Critical Strikes . | . . . Melee Attacks . | . . . Impact . | . . . Slashing . | . . . Piercing . | . . . Sneak Attacks . | . . . Combat Hostiles . | . . . Follow-up Attacks . | . . . Damage Inflicted 850 | 64 649 137 Guns 814 | 64 626 124 Cannons . | . . . Explosions . | . . . Melee . | . . . Ramming 32 | . 23 9 Kinetic 391 | 24 309 58 Thermal 265 | . 195 70 Explosive . | . . . Electromagnetic 162 | 40 122 . Impact . | . . . Slashing . | . . . Piercing . | . . . Highest Corruption 8 | . . 8 Average Corruption 5 | . . 5 Corruption Purged . | . . . Corruption Blocked . | . . . Overload Shots . | . . . Overflow Damage . | . . . Projectiles . | . . . Explosions . | . . . Melee . | . . . Knockbacks . | . . . Impact . | . . . Kinetic . | . . . Secondary . | . . . Self-Inflicted Damage . | . . . Shots . | . . . Rammed . | . . . Targets Rammed 9 | . 7 2 Kicked 9 | . 7 2 Crushed . | . . . Highest Temperature 105 | 18 105 100 Average Temperature 44 | 13 48 46 Received Heat Transfer 431 | 18 213 200 Siege Activations . | . . . Robots Corrupted . | . . . Combat Hostiles . | . . . Parts Fried 1 | 1 . . Impact Corruptions . | . . . Robots Melted . | . . . Combat Hostiles . | . . . Parts Melted . | . . . Heat Transferred 600 | . 425 175 Parts Sabotaged . | . . . Parts Stolen . | . . . Parts Stripped . | . . . Power Chain Reactions . | . . . Missiles Intercepted . | . . . Alert | -11 -10 -10 ------- Run | Jun Mat Min Peak Influence 222 | 20 222 10 Initial 11 | . 11 10 Average 58 | 3 79 7 Maximum Alert Level 1 | . 1 . Low Security (%) 97 | 100 96 100 Level 1 2 | . 3 . Level 2 . | . . . Level 3 . | . . . Level 4 . | . . . Level 5 . | . . . High Security . | . . . Max Security . | . . . Squads Dispatched 2 | . 2 . Investigation 2 | . 2 . Extermination . | . . . Reinforcement . | . . . Assault . | . . . Garrison . | . . . Intercept . | . . . Searches Triggered . | . . . Construction Impeded . | . . . Haulers Reinforced . | . . . Active Scanning Responses . | . . . Cargo Convoy Interrupts . | . . . Stealth | -11 -10 -10 --------- Run | Jun Mat Min Distress Signals 1 | . 1 . Communications Jammed . | . . . Distress Signals . | . . . Times Spotted 20 | 1 10 9 Peak Tracking Total 9 | 1 4 9 Tactical Retreats . | . . . Traps | -11 -10 -10 ------- Run | Jun Mat Min Traps Triggered 3 | . 3 . Indirectly . | . . . Trap Hack Attempts . | . . . Triggered . | . . . Disarmed . | . . . Reprogrammed . | . . . Reused . | . . . Traps Extracted . | . . . Installed . | . . . Triggered . | . . . Machines | -11 -10 -10 ---------- Run | Jun Mat Min Machines Disabled . | . . . Max in Single Turn . | . . . Machines Repaired . | . . . Machines Sabotaged . | . . . Overloaded Fab Kills . | . . . Hacking | -11 -10 -10 --------- Run | Jun Mat Min Machines Accessed 7 | . 7 . Terminals 5 | . 5 . Fabricators . | . . . Repair Stations . | . . . Recycling Units 2 | . 2 . Scanalyzers . | . . . Garrison Access . | . . . Total Hacks 26 | . 26 . Successful 19 | . 19 . Failed 7 | . 7 . Catastrophic 1 | . 1 . Database Lockouts . | . . . Manual 1 | . 1 . Terminals 21 | . 21 . Fabricators . | . . . Repair Stations . | . . . Recycling Units 5 | . 5 . Scanalyzers . | . . . Garrison Access . | . . . Terminal Hacks 17 | . 17 . Record 6 | . 6 . Robot Analysis 1 | . 1 . Prototype ID Bank 1 | . 1 . Alert Level 1 | . 1 . Locate Traps 1 | . 1 . Dispatch Records 1 | . 1 . Maintenance Status 1 | . 1 . Security Status 1 | . 1 . Investigation Status 1 | . 1 . Assault Status 1 | . 1 . Hauler Manifests 2 | . 2 . Fabricator Hacks . | . . . Repair Station Hacks . | . . . Recycling Unit Hacks 2 | . 2 . Retrieve Components 2 | . 2 . Scanalyzer . | . . . Garrison Access Hacks . | . . . Unauthorized Hacks . | . . . Terminals . | . . . Fabricators . | . . . Repair Stations . | . . . Recycling Units . | . . . Scanalyzers . | . . . Garrison Access . | . . . Data Cores Recovered . | . . . Used . | . . . Hacking Detections 5 | . 5 . Full Trace Events 2 | . 2 . Feedback Events . | . . . Feedback Blocked . | . . . Robot Schematics Acquired . | . . . Robots Built . | . . . Authchips . | . . . Time . | . . . Total Robot Build Rating . | . . . Part Schematics Acquired . | . . . Parts Built . | . . . Authchips . | . . . Time . | . . . Total Part Build Rating . | . . . Parts Repaired . | . . . Time . | . . . Parts Recycled . | . . . Recycled Matter . | . . . Retrieved Matter . | . . . Retrieved Components 9 | . 9 . Parts Scanalyzed . | . . . Part Schematics Acquired . | . . . Parts Damaged . | . . . Bothacking | -11 -10 -10 ------------ Run | Jun Mat Min Used RIF Installer . | . . . Robots Hacked . | . . . Non-combat . | . . . Combat . | . . . Robot Hacks Applied . | . . . Relay Couplers Released . | . . . Fabnet Peak Effective % . | . . . Robots Rewired . | . . . Allies Hacked . | . . . Hacks Repelled . | . . . Allies | -11 -10 -10 -------- Run | Jun Mat Min Total Allies . | . . . Largest Group . | . . . Highest-Rated Group . | . . . Highest-Rated Ally . | . . . Total Orders . | . . . Ally Attacks . | . . . Total Damage . | . . . Kills . | . . . Allies Corrupted . | . . . Allies Melted . | . . . Intel | -11 -10 -10 ------- Run | Jun Mat Min Robot Analysis Total 1 | . 1 . Derelict Logs Recovered 2 | . . 2 Drone Launches . | . . . Drone Recoveries . | . . . Exploration | -11 -10 -10 ------------- Run | Jun Mat Min Turns Passed 761 | 97 536 128 Spaces Moved 473 | 76 314 83 Core 23 | 21 2 . Treads . | . . . Legs 450 | 55 312 83 Wheels . | . . . Hover . | . . . Flight . | . . . Fastest Speed 50 | 50 120 120 Average Speed 117 | 100 120 120 Slowest Speed 150 | 120 150 120 Overloaded Moves . | . . . Propulsion Burnouts . | . . . Robots Hopped . | . . . Cave-ins Triggered . | . . . Exploration Rate (%) 32 | 8 58 32 Regions Visited 2 Branch Regions 1 Pre-discovered Areas 1 | . . 1 Known Exits Taken . | . . . Unknown Exits Taken 2 | 1 1 . Scrap Searched 1 | . . 1 Spaces Dug . | . . . Terrain Destroyed . | . . . Melee . | . . . Projectile . | . . . AOE . | . . . Terrain Rammed . | . . . Walls Destroyed . | . . . Machines Disabled . | . . . Actions | -11 -10 -10 --------- Run | Jun Mat Min Total 601 | 90 413 98 Wait 32 | . 32 . Move 471 | 75 313 83 Hop . | . . . Pick Up 23 | 7 16 . Fast Attach . | . . . Attach 20 | 5 11 4 Detach . | . . . Swap . | . . . Drop 4 | . 4 . Fire 42 | 3 30 9 Melee . | . . . Ram . | . . . Kick 9 | . 7 2 Crush . | . . . Escape Stasis . | . . . Rewire . | . . . Trap . | . . . Miscellaneous . | . . . Route ------- -11/Junkyard -10/Materials (discovered 2 exits: [*Mat] / [*Min]) -10/Mines (discovered 2 exits: [*Mat x2]) History --------- Turn | Location | Event 2 | -11/Junkyard | Met Revision 17 69 | -11/Junkyard | Discovered new exit (range 8) 98 | -11/Junkyard | Entered Materials 313 | -10/Materials | Build established: Mutant 360 | -10/Materials | Discovered new exit (range 15) 583 | -10/Materials | Discovered new exit (range 7) 634 | -10/Materials | Entered Mines 642 | -10/Mines | Discovered new exit (range 8) 667 | -10/Mines | Learned Materials garrison access intel 668 | -10/Mines | Assembled infested the area 690 | -10/Mines | Discovered new exit (range 12) 728 | -10/Mines | Learned location of Zion (-7) 753 | -10/Mines | Core integrity fell below 50% 760 | -10/Mines | Core integrity fell below 20% 762 | -10/Mines | Destroyed by as-80822 with Assembled Blade Last Messages --------------- 00746_ K-01 Serf collects debris. 00746_ Aluminum Leg destroyed. 00747_ Assault Rifle destroyed. 00748_ Aluminum Leg destroyed. 00749_ as-04476 sneak attacks. 00749_ T-07 Excavator system corrupted by crushing effect. 00750_ T-07 Excavator system terminally corrupted. 00750_ K-01 Serf collects debris. 00753_ as-04476 sneak attacks. 00753_ K-01 Serf suffers critical hit (Destroy). 00753_ K-01 Serf destroyed. 00755_ as-35566 destroyed. 00755_ Switching to secondary target: as-80822. 00756_ Sml. Laser destroyed. 00757_ Lgt. Ion Engine destroyed. 00757_ System corrupted by crushing effect (+3). 00757_ Sensor Array destroyed. 00757_ System corrupted by crushing effect (+1). 00760_ Lgt. Assault Rifle destroyed. 00760_ System corrupted by crushing effect (+4). Map ----- +----------------------------------------------------+ | ??????????????????# #?????????????????? | | ??????????????????# ##????????????????? | | ??????????????????# ##???????????????? | | ??????????????????# #???????????????? | | ??????????????????# #???????????????? | | ??????????????????# ##???????????????? | | ??????????????????# #????????????????? | | ??????????????????# #????????????????? | | ??????####???????## #????????????????? | | ?????## ##??????# ##????????????????? | | ?????# #??????# ##?????????????????? | | ?????# #??????## #??????????????????? | | ?????# #???????# #??????????????????? | | ????## ########## #??????????????????? | | ???## < #??????????????????? | | ???# ############??????????????????? | | ???# ##?????????????????????????????? | | ???## ##??????????????????????????????? | | ????# ##????####???????????????????????? | | ????# #????## ###?????????????????????? | | ????# #????# ! ##????????????????????? | | ????# #????# !#????????????????????? | | ????# #???## ] %=a######## %= ???????? | | ????# #??## !%a ???????? | | ????# #??# aau$aa ???????? | | ????# #??# r @a #######??????????????? | | ????# #### k aa##????????????????????? | | ????# #?????????????????????? | | ????# ! ##?????????????????????? | | ????## #### #??????????????????????? | | ?????# #??## #??????????????????????? | | ????? #???### #??????????????????????? | | ????? #?????# #??????????????????????? | | ???? #?????# #??????????????????????? | | ???? #?????# #??????????????????????? | | ??? ????? ??????????????????????? | | ??? ????? ?????????????????????? | | ??## ????? ?????????????????????? | | ???# ????? ## ????????????????????? | | ???# ????? ##?#????????????????????? | | ???## ????? #????????????????????????? | | ????? ???????????????????????????????? | | ????? ???????????????????????????????? | | ???????????????????????????????????????? | | ???????????????????????????????????????? | | ???????????????????????????????????????? | | ???????????????????????????????????????? | | ???????????????????????????????????????? | | | | | +----------------------------------------------------+ Best States ------------- Heat Dissipation 25 Energy Generation 10 Energy Capacity 250 Matter Stores 300 Matter Capacity 300 Sight Range 16 Robot Scan Range 14 Terrain Scan Density 10 Resistance: KI 20 Resistance: TH 20 Resistance: EX 20 Resistance: EM 20 Resistance: I 20 Resistance: S 20 Resistance: P 20 Evasion (%) 55 Targeting Accuracy 5 Offensive Hacking 10 Item Schematics ----------------- None Robot Schematics ------------------ None Fabricated ------------ Nothing Alien Tech Used ----------------- None Achievements -------------- Shopping List Challenges ------------ None Game ------ Seed MolecularWeightMallet Manual? 0 Play Time 00:21:44 Cumulative 4.1 hours Start 2023.12.31 @ 20:52:21 End 2023.12.31 @ 21:13:15 Sessions 1 Manual Loads 0 Difficulty Adventurer Special Mode None Game No. 3 Rogue 0 Adventurer 3 Explorer 0 Win Type - Total 0 Types 0/0/0/0/0/0/0/0/0 Lore% 5 Gallery% 7 Achievement% 9 Wizard Run 0 Options --------- ASCII 0 Keyboard 0 Movement Numpad Keybinds 0 Fullscreen 1 Font 16/Smallcaps Map View 76x50 Tactical HUD 1 Map Filters NONE Filters NONE Steam 1 RUN: a948ddfc-f0f3-4927-9a52-d0e551279be3